bitfinex/quotes_SOLUSD_20240918
["timestamp","ask_amount","ask_price","bid_price","bid_amount"]
[1726680564259,0.249578,128.82,128.81,104.85033571]
[1726680565067,0.249578,128.82,128.81,103.29834597]
[1726680566268,0.249578,128.82,128.81,92.028464]
[1726680566469,0.249578,128.82,128.81,68.0006]
[1726680567789,0.249578,128.82,128.81,92.153954]
[1726680568193,0.249578,128.82,128.81,104.85036387]
[1726680568797,0.249578,128.82,128.81,103.29834597]
[1726680568980,0.249578,128.82,128.81,104.85017031]
[1726680571294,0.249578,128.82,128.81,103.29834597]
[1726680572287,0.249578,128.82,128.81,104.85013101]
[1726680572996,0.249578,128.82,128.81,153.29834597]
[1726680575094,0.249578,128.82,128.81,103.29834597]
[1726680579904,0.249578,128.82,128.81,104.85028438]
[1726680580271,0.249578,128.82,128.81,103.29834597]
[1726680581093,0.249578,128.82,128.81,104.85028684]
[1726680582297,0.249578,128.82,128.81,166.20603984]
[1726680582501,0.249578,128.82,128.81,153.29834597]
[1726680583003,0.249578,128.82,128.81,103.29834597]
[1726680583699,0.249578,128.82,128.81,46.5801]
[1726680583901,0.249578,128.82,128.81,7.7633]
[1726680585498,0.249578,128.82,128.81,8.01428]
[1726680587072,0.249578,128.82,128.81,7.88879]
[1726680587806,0.249578,128.82,128.81,9.44106974]
[1726680588177,0.249578,128.82,128.81,43.06104597]
[1726680588693,0.249578,128.82,128.81,44.61299131]
[1726680589089,0.249578,128.82,128.81,43.06104597]
[1726680590003,0.249578,128.82,128.81,31.916654]
[1726680592198,0.249578,128.82,128.81,8.01428]
[1726680592388,0.249578,128.82,128.81,7.7633]
[1726680593385,0.249578,128.82,128.81,9.31561663]
[1726680594213,0.249578,128.82,128.81,7.7633]
[1726680594906,0.249578,128.82,128.81,7.88879]
[1726680595091,0.249578,128.82,128.8,27.173]
[1726680595290,0.249578,128.82,128.81,7.7633]
[1726680600717,0.249578,128.82,128.8,27.173]
[1726680601011,0.249578,128.82,128.81,9.31586539]
[1726680601222,0.249578,128.82,128.81,7.88879]
[1726680601396,0.249578,128.82,128.81,7.7633]
[1726680601593,0.249578,128.82,128.8,27.1731]
[1726680602528,0.249578,128.82,128.8,19.4093]
[1726680602823,20.249578,128.82,128.77,19.4132]
[1726680603819,7.7641,128.8,128.76,7.7661]
[1726680604011,7.7651,128.78,128.74,27.1848]
[1726680604402,7.7657,128.77,128.74,19.4174]
[1726680604815,16.6064,128.78,128.72,7.7686]
[1726680604816,7.7664,128.76,128.72,7.7686]
[1726680605318,27.7659,128.77,128.72,9.32210363]
[1726680605513,27.7659,128.77,128.72,7.7686]
[1726680605709,7.7668,128.76,128.72,11.71284159]
[1726680605920,7.7668,128.76,128.72,7.7686]
[1726680606101,20.0,128.77,128.74,7.767]
[1726680606705,27.7658,128.77,128.73,27.1872]
[1726680606916,20.0,128.77,128.73,19.4193]
[1726680607219,27.7659,128.77,128.73,27.1874]
[1726680607900,27.7659,128.77,128.73,19.4193]
[1726680608418,20.0,128.77,128.74,7.7675]
[1726680608724,20.0,128.77,128.75,7.7669]
[1726680609023,20.0,128.77,128.74,7.7674]
[1726680609616,16.6064,128.78,128.76,7.7662]
[1726680609820,27.7646,128.79,128.75,27.1836]
[1726680610311,7.7646,128.79,128.75,27.1836]
[1726680610910,7.7652,128.78,128.74,7.7675]
[1726680611228,7.7647,128.79,128.75,7.7669]
[1726680611726,7.7654,128.78,128.74,27.186]
[1726680613319,7.7646,128.79,128.75,7.7668]
[1726680614024,20.0,128.78,128.74,19.4187]
[1726680614204,27.7656,128.78,128.74,27.1862]
[1726680614607,7.7659,128.77,128.74,19.4187]
[1726680614801,20.0,128.8,128.73,7.768]
[1726680614802,7.7663,128.76,128.73,7.768]
[1726680615495,7.7659,128.77,128.73,7.768]
[1726680615724,7.7663,128.76,128.72,7.7687]
[1726680616023,7.7663,128.76,128.73,7.7681]
[1726680616233,20.0,128.77,128.74,7.7674]
[1726680619755,27.7657,128.77,128.73,27.1883]
[1726680620931,7.7665,128.76,128.72,7.7685]
[1726680622544,27.766,128.77,128.73,7.7681]
[1726680625026,7.7664,128.76,128.73,7.7681]
[1726680625527,27.766,128.77,128.73,7.7681]
[1726680627457,19.5,128.77,128.74,7.7675]
[1726680627963,23.54131624,128.81,128.75,1.55339874]
[1726680628172,23.1817,128.81,128.77,7.7657]
[1726680628460,15.418,128.81,128.78,7.7651]
[1726680628935,15.418,128.81,128.77,7.7655]
[1726680629145,23.1815,128.81,128.77,7.7655]
[1726680630252,0.249578,128.82,128.75,0.12549]
[1726680630439,7.7642,128.8,128.76,7.7661]
[1726680630837,7.2642,128.8,128.76,7.7661]
[1726680631855,0.249578,128.82,128.76,7.7661]
[1726680631856,0.249578,128.82,128.76,19.4158]
[1726680632043,8.012478,128.82,128.78,7.7646]
[1726680633139,0.249578,128.82,128.79,7.764]
[1726680635765,0.249578,128.82,128.81,7.7633]
[1726680636335,0.249578,128.82,128.8,19.4096]
[1726680637141,0.249578,128.82,128.77,19.413]
[1726680638655,8.012678,128.82,128.78,7.7651]
[1726680639359,7.7637,128.81,128.77,27.1785]
[1726680640150,44.026462,128.82,128.76,7.7662]
[1726680640756,7.7641,128.8,128.76,7.7662]
[1726680641982,7.7647,128.79,128.75,7.7668]
[1726680642957,7.7636,128.81,128.77,7.7657]
[1726680643269,0.249578,128.82,128.78,19.4128]
[1726680643475,8.012278,128.82,128.78,27.1777]
[1726680643861,7.7634,128.81,128.78,19.4128]
[1726680644172,7.7639,128.8,128.76,7.89169]
[1726680644376,7.7639,128.8,128.77,7.7657]
[1726680644745,7.7636,128.81,128.77,7.7657]
[1726680647581,28.012478,128.82,128.78,7.765]
[1726680648652,7.7634,128.81,128.78,7.765]
[1726680650958,20.249578,128.82,128.79,7.7643]
[1726680651159,20.249578,128.82,128.79,7.7642]
[1726680651160,0.249578,128.82,128.79,7.7642]
[1726680652063,8.012278,128.82,128.79,7.7642]
[1726680654359,7.7634,128.81,128.78,19.4114]
[1726680655761,7.7634,128.81,128.77,7.7653]
[1726680655964,0.249578,128.82,128.75,19.416]
[1726680655965,7.7642,128.8,128.76,7.7662]
[1726680657391,15.60359,128.81,128.72,6.0904]
[1726680657689,20.37647,128.79,128.72,19.4207]
[1726680657915,7.7658,128.77,128.72,27.1893]
[1726680660272,7.7653,128.78,128.73,7.768]
[1726680660886,20.0,128.77,128.73,7.768]
[1726680661099,23.2416,128.81,128.74,20.97155055]
[1726680661291,23.2416,128.81,128.76,7.7662]
[1726680661469,15.4781,128.81,128.74,27.1853]
[1726680661981,7.765,128.79,128.74,27.1853]
[1726680662367,7.7653,128.78,128.74,19.4182]
[1726680662789,7.7653,128.78,128.74,27.1856]
[1726680663491,20.0,128.8,128.76,7.7662]
[1726680663668,0.249578,128.82,128.77,1.55312622]
[1726680663864,0.249578,128.82,128.78,7.765]
[1726680664063,8.012378,128.82,128.78,27.1773]
[1726680664288,8.012378,128.82,128.78,19.4123]
[1726680664467,8.012378,128.82,128.75,19.4164]
[1726680664664,8.012378,128.82,128.77,7.7653]
[1726680665080,8.012378,128.82,128.78,7.7651]
[1726680669096,0.249578,128.82,128.79,7.7645]
[1726680670895,0.249578,128.82,128.81,7.7633]
[1726680674595,0.249578,128.82,128.81,8.01428]
[1726680674982,0.249578,128.82,128.81,8.13977]
[1726680675185,0.249578,128.82,128.81,9.69193922]
[1726680675391,0.249578,128.82,128.81,8.13977]
[1726680676315,0.249578,128.82,128.81,51.325054]
[1726680678613,0.249578,128.82,128.81,27.54817]
[1726680681400,0.249578,128.82,128.81,52.87722691]
[1726680681582,0.249578,128.82,128.81,51.325054]
[1726680682191,0.249578,128.82,128.81,77.956854]
[1726680682395,0.249578,128.86,128.85,27.28879]
[1726680682715,0.249578,128.86,128.85,71.316654]
[1726680683312,0.249578,128.86,128.85,77.585754]
[1726680684709,0.249578,128.86,128.85,57.585754]
[1726680684917,0.249578,128.86,128.85,33.80887]
[1726680687813,0.249578,128.86,128.85,57.585754]
[1726680691298,0.249578,128.86,128.85,77.585754]
[1726680695414,0.249578,128.86,128.85,57.585754]
[1726680699519,0.249578,128.86,128.85,27.1633]
[1726680700513,0.249578,128.86,128.85,27.28879]
[1726680701397,0.249578,128.86,128.85,27.1633]
[1726680702599,0.249578,128.86,128.85,19.4024]
[1726680702995,0.249578,128.86,128.84,7.7614]
[1726680703193,0.249578,128.86,128.83,7.7619]
[1726680706823,0.249578,128.86,128.84,7.7615]
[1726680707006,0.249578,128.86,128.85,9.31301715]
[1726680707320,0.249578,128.86,128.85,7.7609]
[1726680707822,0.249578,128.86,128.85,7.88639]
[1726680708532,0.249578,128.86,128.85,31.914254]
[1726680709535,0.249578,128.86,128.85,70.719054]
[1726680713518,0.249578,128.86,128.85,92.2705856]
[1726680713895,7.8e-05,128.86,128.85,92.2705856]
[1726680714204,7.8e-05,128.86,128.85,94.63624082]
[1726680715329,7.8e-05,128.86,128.85,90.719054]
[1726680715513,7.8e-05,128.86,128.85,94.63746523]
[1726680716920,7.8e-05,128.86,128.85,70.60960123]
[1726680717929,7.8e-05,128.86,128.85,72.16105239]
[1726680718126,7.8e-05,128.86,128.85,70.86058123]
[1726680719203,7.8e-05,128.86,128.85,94.63746523]
[1726680720709,0.249578,128.9,128.89,90.100854]
[1726680723342,0.249578,128.9,128.89,66.19848]
[1726680723641,0.249578,128.9,128.89,27.40578]
[1726680723937,0.249578,128.9,128.89,27.1548]
[1726680731142,0.249578,128.9,128.89,27.28029]
[1726680731920,0.249578,128.9,128.89,27.1548]
[1726680732747,0.249578,128.9,128.89,27.28029]
[1726680733043,0.249578,128.9,128.89,51.308154]
[1726680734057,0.249578,128.9,128.89,96.71519056]
[1726680734216,0.249578,128.9,128.89,116.30758884]
[1726680734422,0.249578,128.9,128.89,114.75646277]
[1726680734730,0.249578,128.9,128.89,110.83856449]
[1726680735447,0.249578,128.9,128.89,49.2969]
[1726680736147,0.249578,128.9,128.89,73.073784]
[1726680736942,0.249578,128.9,128.89,73.450254]
[1726680740046,0.249578,128.9,128.89,92.38968972]
[1726680740253,0.249578,128.9,128.89,73.450254]
[1726680741429,0.249578,128.9,128.89,75.00134239]
[1726680742153,7.8e-05,128.9,128.89,112.38965288]
[1726680742527,7.8e-05,128.9,128.89,116.30536801]
[1726680742831,7.8e-05,128.9,128.89,98.91705752]
[1726680743627,7.8e-05,128.9,128.89,49.2969]
[1726680743831,7.8e-05,128.9,128.89,69.2969]
[1726680744551,7.8e-05,128.9,128.89,47.1548]
[1726680744930,7.8e-05,128.9,128.89,71.057174]
[1726680745343,7.8e-05,128.9,128.89,71.308154]
[1726680746627,7.8e-05,128.9,128.89,82.41857522]
[1726680747128,7.8e-05,128.9,128.89,132.41857522]
[1726680749454,7.8e-05,128.9,128.89,136.34070561]
[1726680749835,7.8e-05,128.9,128.89,86.34070561]
[1726680750235,7.8e-05,128.9,128.89,82.41857522]
[1726680750435,7.8e-05,128.9,128.89,136.34164407]
[1726680750847,7.8e-05,128.9,128.89,86.34164407]
[1726680751045,7.8e-05,128.9,128.89,82.41857522]
[1726680751638,7.8e-05,128.9,128.89,86.34263259]
[1726680753665,7.8e-05,128.9,128.89,87.89357483]
[1726680754580,7.8e-05,128.9,128.89,86.34263259]
[1726680755259,7.8e-05,128.9,128.89,87.89357556]
[1726680755577,7.8e-05,128.9,128.89,87.89357695]
[1726680756059,7.8e-05,128.9,128.89,86.34263259]
[1726680757138,7.8e-05,128.9,128.89,31.07885737]
[1726680757458,7.8e-05,128.9,128.89,27.1548]
[1726680759453,7.8e-05,128.9,128.89,27.28029]
[1726680759968,7.8e-05,128.9,128.89,27.53127]
[1726680761970,7.8e-05,128.9,128.89,55.23846559]
[1726680764171,7.8e-05,128.9,128.89,51.308154]
[1726680764596,7.8e-05,128.9,128.89,55.23752346]
[1726680764951,7.8e-05,128.9,128.89,56.7885755]
[1726680765147,7.8e-05,128.9,128.89,55.23752346]
[1726680765370,7.8e-05,128.9,128.89,56.78852663]
[1726680765951,7.8e-05,128.9,128.89,76.78852663]
[1726680766353,7.8e-05,128.9,128.89,75.23752346]
[1726680768053,7.8e-05,128.9,128.89,71.308154]
[1726680768254,7.8e-05,128.9,128.89,75.23648917]
[1726680770389,7.8e-05,128.9,128.89,71.308154]
[1726680771069,7.8e-05,128.9,128.89,75.23555059]
[1726680771375,7.8e-05,128.9,128.89,71.308154]
[1726680772971,7.8e-05,128.9,128.89,75.23580769]
[1726680774563,7.8e-05,128.9,128.89,71.308154]
[1726680774766,7.8e-05,128.9,128.89,75.23775352]
[1726680778287,7.8e-05,128.9,128.89,75.23780563]
[1726680779091,7.8e-05,128.9,128.89,79.16745728]
[1726680782095,7.8e-05,128.9,128.89,75.23780563]
[1726680782297,7.8e-05,128.9,128.89,86.34432243]
[1726680785088,7.8e-05,128.9,128.89,87.89528486]
[1726680785666,7.8e-05,128.9,128.89,137.89528486]
[1726680785888,7.8e-05,128.9,128.89,136.34432243]
[1726680786067,7.8e-05,128.9,128.89,137.89511749]
[1726680786480,7.8e-05,128.9,128.89,136.34432243]
[1726680787292,7.8e-05,128.9,128.89,132.4146708]
[1726680787670,0.249578,128.94,128.93,110.080454]
[1726680787869,0.249578,128.94,128.93,122.73752807]
[1726680788191,0.249578,128.94,128.93,121.1869708]
[1726680791108,0.249578,128.94,128.93,171.1869708]
[1726680793006,0.249578,128.98,128.97,110.060054]
[1726680793314,0.249578,128.98,128.97,121.1665708]
[1726680793598,0.249578,128.98,128.97,122.71656557]
[1726680793802,0.249578,128.98,128.97,121.1665708]
[1726680793999,0.249578,128.98,128.97,122.71654688]
[1726680794302,7.8e-05,128.98,128.97,172.71654688]
[1726680794911,7.8e-05,128.98,128.97,121.1665708]
[1726680796698,7.8e-05,128.98,128.97,110.060054]
[1726680797086,7.8e-05,128.98,128.97,121.1665708]
[1726680801296,7.8e-05,128.98,128.97,122.71669251]
[1726680801496,7.8e-05,128.98,128.97,121.1665708]
[1726680801990,7.8e-05,128.98,128.97,122.71664456]
[1726680803704,7.8e-05,128.98,128.97,121.1665708]
[1726680807204,7.8e-05,128.98,128.97,172.71657371]
[1726680807415,7.8e-05,128.98,128.97,188.38487371]
[1726680807796,0.249578,129.01,129.0,71.285054]
[1726680807998,0.249578,129.01,129.0,82.3915708]
[1726680811786,0.249578,129.01,129.0,71.285054]
[1726680811992,0.249578,129.01,129.0,47.50817]
[1726680812893,0.249578,129.01,129.0,47.38268]
[1726680816609,0.249578,129.01,129.0,48.93265945]
[1726680816811,0.249578,129.01,129.0,82.3915708]
[1726680821230,0.249578,129.01,129.0,83.94134822]
[1726680822325,0.249578,129.01,129.0,82.3915708]
[1726680823630,0.249578,129.01,129.0,47.50817]
[1726680824124,0.249578,129.01,129.0,47.38268]
[1726680825026,0.249578,129.01,129.0,83.94155268]
[1726680825914,0.249578,129.01,129.0,82.3915708]
[1726680830619,0.249578,129.01,129.0,71.285054]
[1726680831624,0.249578,129.01,129.0,47.38268]
[1726680831838,0.249578,129.01,129.0,27.1317]
[1726680834335,0.249578,129.01,129.0,27.38268]
[1726680835439,0.249578,129.01,129.0,51.285054]
[1726680836737,0.249578,129.01,129.0,82.3915708]
[1726680837715,7.8e-05,129.01,129.0,121.1511708]
[1726680837935,7.8e-05,129.01,129.0,122.70073853]
[1726680838527,7.8e-05,129.01,129.0,121.1511708]
[1726680839244,7.8e-05,129.01,129.0,122.70074512]
[1726680839682,7.8e-05,129.01,129.0,121.1511708]
[1726680840456,7.8e-05,129.01,129.0,122.70074583]
[1726680840743,0.249578,129.05,129.0,122.70074583]
[1726680840744,0.249578,129.05,129.04,110.024254]
[1726680840927,0.249578,129.05,129.04,121.1307708]
[1726680842152,7.8e-05,129.05,129.04,121.1307708]
[1726680842725,7.8e-05,129.05,129.04,122.68010452]
[1726680846444,7.8e-05,129.05,129.04,121.1307708]
[1726680847644,7.8e-05,129.05,129.04,122.67993002]
[1726680848051,7.8e-05,129.05,129.04,121.1307708]
[1726680850655,7.8e-05,129.05,129.04,122.67993095]
[1726680852459,7.8e-05,129.05,129.04,122.67993004]
[1726680852837,7.8e-05,129.05,129.04,137.72413004]
[1726680853155,0.249578,129.09,129.08,121.1103708]
[1726680853156,7.8e-05,129.09,129.08,121.1103708]
[1726680853536,7.8e-05,129.09,129.08,171.1103708]
[1726680855931,0.249578,129.13,129.12,66.20657]
[1726680856157,0.249578,129.13,129.12,77.3130868]
[1726680856660,0.249578,129.13,129.12,101.0899708]
[1726680857547,16.779878,129.17,129.12,101.0899708]
[1726680857548,16.5303,129.17,129.16,27.0981]
[1726680857940,16.9014988,129.17,129.16,27.0981]
[1726680859748,16.9014988,129.17,129.14,7.7434]
[1726680859950,16.9014988,129.17,129.13,27.1037]
[1726680860452,16.9014988,129.17,129.13,19.3597]
[1726680860453,24.6431988,129.17,129.13,19.3597]
[1726680862361,24.6431988,129.17,129.13,27.1037]
[1726680862855,16.9014988,129.17,129.13,27.1037]
[1726680863649,16.9014988,129.17,129.14,7.7434]
[1726680866446,16.9014988,129.17,129.15,19.3565]
[1726680867373,0.3711988,129.17,129.16,7.7423]
[1726680867666,0.2606863,129.23,129.16,7.7423]
[1726680867667,0.2606863,129.23,129.22,27.0855]
[1726680867876,0.5214714,129.23,129.22,38.5684868]
[1726680868040,0.5214714,129.23,129.22,82.3453708]
[1726680868243,0.5214714,129.23,129.22,83.89245237]
[1726680868844,0.5214714,129.23,129.22,86.03018]
[1726680869060,0.5214714,129.23,129.22,97.1366968]
[1726680869252,0.5214714,129.23,129.22,86.03018]
[1726680869456,0.5214714,129.23,129.22,97.1366968]
[1726680869648,0.5214714,129.23,129.22,66.03018]
[1726680870770,0.5214714,129.23,129.22,67.57738731]
[1726680871345,0.5214714,129.23,129.22,91.47976131]
[1726680872070,0.5214714,129.23,129.22,67.70287731]
[1726680872448,0.5214714,129.23,129.22,91.47976131]
[1726680872655,0.5214714,129.23,129.22,111.47976131]
[1726680873157,0.5214714,129.23,129.22,87.70287731]
[1726680873970,0.5214714,129.23,129.22,87.57738731]
[1726680874157,0.5214714,129.23,129.22,67.45190335]
[1726680874375,0.5214714,129.23,129.22,67.57739335]
[1726680874698,0.5214714,129.23,129.22,28.88369335]
[1726680876477,0.5214714,129.23,129.22,27.33648]
[1726680876680,0.5214714,129.23,129.22,28.75820341]
[1726680877563,0.5214714,129.23,129.22,27.0855]
[1726680880477,0.5214714,129.23,129.22,27.21099]
[1726680880691,0.5214714,129.23,129.22,29.00906658]
[1726680882685,0.5214714,129.23,129.22,27.46197]
[1726680883575,0.5214714,129.23,129.22,29.00905466]
[1726680883767,0.5214714,129.23,129.22,27.46197]
[1726680883971,0.5214714,129.23,129.22,29.0090547]
[1726680884160,0.5214714,129.23,129.22,27.46197]
[1726680885886,0.5214714,129.23,129.22,29.0090575]
[1726680886089,0.5214714,129.23,129.22,27.46197]
[1726680886588,0.5214714,129.23,129.22,51.238854]
[1726680887168,0.5214714,129.23,129.22,27.46197]
[1726680887666,0.5214714,129.23,129.22,51.238854]
[1726680887988,0.5214714,129.23,129.22,27.46197]
[1726680889970,0.5214714,129.23,129.22,38.5145864]
[1726680890366,0.5214714,129.23,129.22,40.06166421]
[1726680890563,0.5214714,129.23,129.22,38.5145864]
[1726680890877,0.5214714,129.23,129.22,29.00904914]
[1726680891189,0.5214714,129.23,129.22,27.46197]
[1726680891589,0.5214714,129.23,129.22,29.00904805]
[1726680891885,0.5214714,129.23,129.22,38.5145864]
[1726680895690,0.5214714,129.23,129.22,62.2914704]
[1726680899291,0.5214714,129.23,129.22,147.7963704]
[1726680900299,0.5214714,129.23,129.22,149.34327972]
[1726680901372,0.5214714,129.23,129.22,147.7963704]
[1726680901590,0.5214714,129.23,129.22,47.0855]
[1726680901894,0.5214714,129.23,129.22,27.0855]
[1726680902468,0.5214714,129.23,129.22,28.63271814]
[1726680903291,0.5214714,129.23,129.22,28.63279632]
[1726680904899,0.5214714,129.23,129.22,27.0855]
[1726680906069,0.5214714,129.23,129.22,27.21099]
[1726680906274,0.5214714,129.23,129.22,28.75822061]
[1726680906704,0.5214714,129.23,129.22,40.06181701]
[1726680906882,0.5214714,129.23,129.22,63.83870101]
[1726680907074,0.5214714,129.23,129.22,62.2914704]
[1726680909505,0.2606863,129.27,129.26,38.6817]
[1726680909506,0.2607577,129.27,129.26,38.6817]
[1726680909678,0.2607577,129.27,129.26,101.6239704]
[1726680909877,0.2607577,129.27,129.26,90.571354]
[1726680910101,0.2607577,129.27,129.26,86.13527]
[1726680910399,0.2607577,129.27,129.26,87.6819133]
[1726680910596,0.2607577,129.27,129.26,67.4309333]
[1726680910897,0.2607577,129.27,129.26,66.13527]
[1726680911101,0.267069,129.31,129.28,7.7349]
[1726680911399,0.50479,129.31,129.28,7.7349]
[1726680911572,0.50479,129.31,129.28,19.3373]
[1726680911977,0.50479,129.31,129.28,27.072]
[1726680912218,0.50479,129.31,129.29,9.28106016]
[1726680912504,0.50479,129.31,129.28,19.3373]
[1726680912710,0.50479,129.31,129.29,7.734]
[1726680913076,0.50479,129.31,129.3,7.7339]
[1726680914700,0.50479,129.31,129.3,51.887254]
[1726680915286,0.50479,129.31,129.3,28.11037]
[1726680915611,0.50479,129.31,129.3,7.7339]
[1726680916192,0.50479,129.31,129.3,8.11037]
[1726680917185,0.50479,129.31,129.28,19.3373]
[1726680917407,0.50479,129.31,129.3,7.7339]
[1726680921617,0.50479,129.31,129.3,9.65675351]
[1726680921796,0.50479,129.31,129.3,33.43347134]
[1726680922113,0.50479,129.31,129.3,8.11037]
[1726680922493,0.50479,129.31,129.3,7.85939]
[1726680923414,0.50479,129.31,129.3,119.14613537]
[1726680923613,0.50479,129.31,129.3,120.69211592]
[1726680923809,0.50479,129.31,129.3,51.887254]
[1726680925098,0.50479,129.31,129.3,7.7339]
[1726680926900,0.50479,129.31,129.3,7.98488]
[1726680927299,0.50479,129.31,129.3,8.11037]
[1726680927506,0.50479,129.31,129.3,7.85939]
[1726680928721,0.50479,129.31,129.3,7.7339]
[1726680930612,0.50479,129.31,129.3,9.28028165]
[1726680931803,0.50479,129.31,129.3,9.40577165]
[1726680932811,0.50479,129.31,129.3,9.53126165]
[1726680933693,0.50479,129.31,129.3,7.98488]
[1726680934300,0.50479,129.31,129.3,7.85939]
[1726680934503,0.50479,129.31,129.3,7.7339]
[1726680939923,0.50479,129.31,129.3,19.15086391]
[1726680940229,0.50479,129.31,129.3,44.47394779]
[1726680940524,0.50479,129.31,129.3,123.37053982]
[1726680940719,0.50479,129.31,129.3,112.92774791]
[1726680941318,0.50479,129.31,129.3,114.47373758]
[1726680941522,0.267069,129.35,129.3,114.47373758]
[1726680941523,0.267159,129.35,129.34,7.98248]
[1726680941702,0.267159,129.35,129.34,19.14846391]
[1726680942425,0.267159,129.35,129.34,38.47736391]
[1726680942599,0.267159,129.35,129.34,27.18589]
[1726680943023,0.267159,129.35,129.34,27.0604]
[1726680945805,0.267159,129.35,129.34,28.60632295]
[1726680946006,0.267159,129.35,129.34,27.0604]
[1726680951728,0.267159,129.35,129.34,28.60632196]
[1726680952716,0.267159,129.35,129.34,40.02328587]
[1726680953534,0.267159,129.35,129.34,40.02303406]
[1726680954043,0.267159,129.35,129.34,38.47736391]
[1726680955520,0.267159,129.35,129.34,40.02306781]
[1726680957405,0.267159,129.35,129.34,38.22638391]
[1726680957612,0.267159,129.35,129.34,133.80004038]
[1726680958020,0.267159,129.35,129.34,27.0604]
[1726680958833,0.267159,129.35,129.34,38.10089391]
[1726680959438,0.267159,129.35,129.34,38.22638391]
[1726680959766,0.267159,129.35,129.34,28.73165639]
[1726680959944,5.9e-05,129.35,129.34,60.02313444]
[1726680960232,5.9e-05,129.35,129.34,19.3289]
[1726680960444,5.9e-05,129.35,129.32,7.7326]
[1726680960820,15.828259,129.35,129.31,27.0656]
[1726680961025,15.828259,129.35,129.32,7.7327]
[1726680961225,5.9e-05,129.35,129.34,7.7315]
[1726680962533,7.7317,129.34,129.3,19.334]
[1726680962737,5.9e-05,129.35,129.28,9.59825939]
[1726680962915,5.9e-05,129.35,129.33,11.04049391]
[1726680963119,5.9e-05,129.35,129.34,12.58642684]
[1726680963323,5.9e-05,129.35,129.34,20.31792684]
[1726680963628,5.9e-05,129.35,129.34,18.77199391]
[1726680963929,5.9e-05,129.35,129.34,70.66134106]
[1726680964326,5.9e-05,129.35,129.34,109.31914106]
[1726680964550,5.9e-05,129.35,129.34,111.84006411]
[1726680964718,5.9e-05,129.35,129.34,107.77356654]
[1726680965340,5.9e-05,129.35,129.34,115.52856654]
[1726680965525,5.9e-05,129.35,129.34,107.77356654]
[1726680967142,5.9e-05,129.35,129.34,7.7315]
[1726680968158,5.9e-05,129.35,129.33,7.732]
[1726680968447,5.9e-05,129.35,129.34,4.06649146]
[1726680970230,7.730959,129.35,129.31,19.3325]
[1726680970419,5.9e-05,129.35,129.31,27.0658]
[1726680970844,5.9e-05,129.35,129.32,7.7327]
[1726680971443,7.730959,129.35,129.31,19.3325]
[1726680971645,7.7309,129.35,129.31,19.3325]
[1726680971948,7.8061579,129.36,129.31,19.3325]
[1726680972524,7.8061579,129.36,129.31,27.0657]
[1726680972740,7.731,129.35,129.31,19.3325]
[1726680973346,14.2611,129.35,129.31,19.3325]
[1726680973644,15.1991,129.33,129.29,7.7343]
[1726680973819,7.7328,129.32,129.28,19.3371]
[1726680974232,7.7334,129.31,129.26,7.9132278]
[1726680975324,20.0,129.31,129.26,0.1771278]
[1726680975526,7.7346,129.29,129.26,0.1771278]
[1726680975755,7.734,129.3,129.26,0.1771278]
[1726680976846,23.776884,129.3,129.26,0.1771278]
[1726680977232,20.0,129.3,129.26,0.1771278]
[1726680977756,20.0,129.3,129.26,7.9132278]
[1726680977923,20.0,129.3,129.26,0.1771278]
[1726680978121,27.7341,129.3,129.26,0.1771278]
[1726680979651,20.0,129.3,129.26,7.9133278]
[1726680980529,20.0,129.3,129.26,0.1771278]
[1726680982461,20.0,129.31,129.26,0.1771278]
[1726680982663,20.0,129.32,129.28,7.735]
[1726680983646,8.09343686,129.34,129.31,7.7333]
[1726680983850,7.7323,129.33,129.29,19.3355]
[1726680984152,7.7323,129.33,129.29,27.0699]
[1726680984652,6.5301,129.35,129.3,7.7338]
[1726680986055,6.5301,129.35,129.29,27.0699]
[1726680987157,7.732,129.34,129.29,27.0699]
[1726680988051,14.2611,129.35,129.3,7.7335]
[1726680988456,7.7322,129.33,129.29,27.0698]
[1726680988756,7.7322,129.33,129.29,19.3355]
[1726680988931,31.508584,129.34,129.29,19.3355]
[1726680989135,38.038084,129.35,129.3,7.7338]
[1726680989352,38.038084,129.35,129.29,19.3355]
[1726680989559,23.776884,129.35,129.31,7.7331]
[1726680989944,24.0102579,129.36,129.32,7.7326]
[1726680990144,20.0,129.35,129.32,7.7326]